fUST/lending_fUST_20260128
["ID","MTS","AMOUNT","RATE_DAILY","PERIOD"]
[403827908,1769569838508,-276.76435874,0.0001163,2]
[403827909,1769569838517,-500.0,0.0001163,2]
[403827910,1769569838527,-500.0,0.0001163,2]
[403827911,1769569838536,-71.46828046,0.0001163,2]
[403827912,1769569838551,-428.53171954,0.0001163,2]
[403827914,1769569838560,-500.0,0.0001163,2]
[403827915,1769569838569,-500.0,0.0001163,2]
[403827916,1769569838578,-489.5252983,0.0001163,2]
[403827917,1769569838589,-10.4747017,0.0001163,2]
[403827918,1769569838599,-274.06529832,0.0001163,2]
[403827919,1769569838615,-225.93470168,0.0001163,2]
[403827920,1769569838626,-500.0,0.0001163,2]
[403827921,1769569838635,-500.0,0.0001163,2]
[403827922,1769569838645,-500.0,0.0001163,2]
[403827923,1769569838654,-500.0,0.0001163,2]
[403827924,1769569838664,-500.0,0.0001163,2]
[403827925,1769569838673,-500.0,0.0001163,2]
[403827926,1769569838693,-643.95564865,0.0001163,2]
[403827927,1769569838704,-500.0,0.0001163,2]
[403827928,1769569838713,-500.0,0.0001163,2]
[403827929,1769569838907,-500.0,0.0001163,2]
[403827930,1769569838922,-500.0,0.0001163,2]
[403827931,1769569838931,-500.0,0.0001163,2]
[403827932,1769569838941,-500.0,0.0001163,2]
[403827933,1769569838953,-500.0,0.0001163,2]
[403827934,1769569838963,-500.0,0.0001163,2]
[403827935,1769569838973,-500.0,0.0001163,2]
[403827936,1769569838983,-500.0,0.0001163,2]
[403827937,1769569838992,-500.0,0.0001163,2]
[403827938,1769569839002,-500.0,0.0001163,2]
[403827939,1769569839011,-500.0,0.0001163,2]
[403827940,1769569839020,-50000.0,0.0001163,2]
[403827941,1769569839030,-357.25959769,0.00011631,2]
[403827942,1769569839041,-1000000.0,0.00011635,2]
[403827943,1769569839050,-151.03654778,0.00011636,2]
[403827944,1769569839060,-300.0,0.00011736,2]
[403827945,1769569839069,-300.0,0.00011736,2]
[403827946,1769569839079,-300.0,0.00011736,2]
[403827947,1769569839088,-300.0,0.00011736,2]
[403827948,1769569839097,-300.0,0.00011736,2]
[403827949,1769569839107,-300.0,0.00011736,2]
[403827950,1769569839116,-300.0,0.00011736,2]
[403827951,1769569839127,-300.0,0.00011736,2]
[403827952,1769569839136,-300.0,0.00011736,2]
[403827953,1769569839145,-300.0,0.00011736,2]
[403827954,1769569839154,-300.0,0.00011736,2]
[403827955,1769569839164,-300.0,0.00011736,2]
[403827956,1769569839173,-300.0,0.00011736,2]
[403827957,1769569839183,-300.0,0.00011736,2]
[403827958,1769569839192,-300.0,0.00011736,2]
[403827959,1769569839201,-600.0,0.00011736,2]
[403827960,1769569839210,-355.35,0.000121,2]
[403827961,1769569839220,-576.04042668,0.00012524,2]
[403827962,1769569839229,-720.0,0.00012909,2]
[403827963,1769569839238,-306.0,0.00013,2]
[403827964,1769569839248,-523.78631543,0.00013273,2]
[403827965,1769569839257,-500.0,0.00013273,2]
[403827966,1769569839266,-500.0,0.00013273,2]
[403827967,1769569839275,-500.0,0.00013273,2]
[403827968,1769569839284,-500.0,0.00013273,2]
[403827969,1769569839293,-221.79267785,0.00013575,2]
[403827970,1769569839303,-300.0,0.00013673,2]
[403827971,1769569839313,-500.0,0.00013698,2]
[403827972,1769569839322,-168.68917652,0.00013698,2]
[403827973,1769569839332,-23526.8146484,0.00013699,2]
[403827974,1769569839341,-500.0,0.00013699,2]
[403827975,1769569839351,-500.0,0.00013699,2]
[403827976,1769569839360,-500.0,0.00013699,2]
[403827977,1769569839369,-260.16839164,0.00013699,2]
[403827978,1769569839378,-645.08405891,0.00013699,2]
[403827979,1769569839387,-428.72037754,0.00013699,2]
[403827980,1769569839396,-502.25737782,0.00013699,2]
[403827981,1769569839405,-494.70208196,0.00013699,2]
[403827982,1769569839414,-221.81114043,0.00013699,2]
[403827983,1769569839423,-153.08980775,0.00013699,2]
[403827984,1769569839431,-500.0,0.00013699,2]
[403827985,1769569839441,-500.0,0.00013699,2]
[403827986,1769569839450,-500.0,0.00013699,2]
[403827987,1769569839459,-500.0,0.00013699,2]
[403827988,1769569839468,-500.66686659,0.00013699,2]
[403827989,1769569839477,-500.0,0.00013699,2]
[403827990,1769569839486,-179.57479602,0.00013699,2]
[403827991,1769569839495,-1000.0,0.00013821,2]
[403827992,1769569839504,-1000.0,0.00013821,2]
[403827993,1769569839513,-1000.0,0.00013821,2]
[403827994,1769569839522,-1000.0,0.00013821,2]
[403827995,1769569839531,-100000.0,0.00014006,2]
[403827996,1769569839540,-864.0,0.000142,2]
[403827997,1769569839549,-251.24750098,0.00015284,2]
[403827998,1769569839559,-255.62545921,0.00015575,2]
[403827999,1769569839568,-1000.0,0.0001562,2]
[403828000,1769569839577,-150.32,0.000162,2]
[403828001,1769569839587,-1334.8330515,0.0001629,2]
[403828002,1769569839595,-200.0,0.00016438,2]
[403828003,1769569839605,-1000.0,0.00017182,2]
[403828004,1769569839614,-244.0,0.00017182,2]
[403828005,1769569839623,-289.45824058,0.00017575,2]
[403828006,1769569839632,-1369.0,0.00017994,2]
[403828007,1769569839641,-2150.0,0.00017994,2]
[403828008,1769569839651,-630.0,0.00017994,2]
[403828009,1769569839660,-716.0,0.00017994,2]
[403828010,1769569839669,-180.381,0.00017994,2]
[403828011,1769569839678,-418.0,0.00017994,2]
[403828012,1769569839687,-160.0,0.0001833,2]
[403828013,1769569839696,-1041.66666667,0.0001833,2]
[403828014,1769569839706,-150.22,0.00018794,2]
[403828015,1769569839715,-150.306,0.00018794,2]
[403828016,1769569839724,-1000.0,0.00018901,2]
[403828017,1769569839734,-492.0,0.00018901,2]
[403828018,1769569839743,-912.71,0.000193,2]
[403828019,1769569839752,-2484.05,0.000193,2]
[403828020,1769569839761,-323.29102194,0.00019575,2]
[403828021,1769569839770,-173.54,0.000197,2]
[403828022,1769569839779,-256.22529399,0.0002,2]
[403828023,1769569839788,-1023.87627477,0.0002,2]
[403828024,1769569839797,-502.05908841,0.0002,2]
[403828025,1769569839806,-250.0,0.0002,10]
[403828026,1769569839816,-449.07485054,0.0002,2]
[403828027,1769569839825,-1794.50310276,0.0002,2]
[403828028,1769569839834,-250.0,0.000201,10]
[403828029,1769569839843,-250.0,0.000202,10]
[403828030,1769569839852,-429.972995,0.000203,10]
[403828031,1769569839861,-475.0,0.000204,2]
[403828032,1769569839871,-475.0,0.000204,2]
[403828033,1769569839880,-475.0,0.000204,2]
[403828034,1769569839890,-500.0,0.0002042,2]
[403828035,1769569839899,-500.0,0.0002042,2]
[403828036,1769569839912,-1000.0,0.00020791,2]
[403828037,1769569839922,-791.0,0.00020791,2]
[403828038,1769569839931,-150.32,0.000208,2]
[403828039,1769569839940,-1369.0,0.00020994,2]
[403828040,1769569839949,-2150.0,0.00020994,2]
[403828041,1769569839958,-630.0,0.00020994,2]
[403828042,1769569839967,-716.0,0.00020994,2]
[403828043,1769569839977,-179.0,0.00020994,2]
[403828044,1769569839986,-418.0,0.00020994,2]
[403828045,1769569839996,-293.51,0.00021384,2]
[403828046,1769569840006,-2000.0,0.00021511,7]
[403828047,1769569840017,-357.12380331,0.00021575,2]
[403828048,1769569840028,-1000.0,0.0002287,10]
[403828049,1769569840038,-1000.0,0.0002287,10]
[403828050,1769569840047,-156.99,0.000229,2]
[403828051,1769569840057,-587.02,0.00023328,2]
[403828052,1769569840066,-390.95658468,0.00023575,2]
[403828053,1769569840075,-1369.0,0.00023994,2]
[403828054,1769569840084,-2150.0,0.00023994,2]
[403828055,1769569840093,-630.0,0.00023994,2]
[403828056,1769569840102,-716.0,0.00023994,2]
[403828057,1769569840112,-179.0,0.00023994,2]
[403828058,1769569840121,-418.0,0.00023994,2]
[403828059,1769569840130,-2484.05,0.000242,2]
[403828060,1769569840144,-380.0,0.00024658,2]
[403828061,1769569840154,-912.71,0.000248,14]
[403828062,1769569840163,-374268.2739606,0.000249,2]
[403828063,1769569840177,-16094.85708563,0.000249,2]
[403828098,1769569840570,-11218.38,0.0002489,10]
[403828100,1769569840579,-18794.07172582,0.000249,2]
[403828102,1769569840590,-1932.74865695,0.000249,2]
[403828106,1769569840623,-3034.06366344,0.000249,2]
[403828109,1769569840634,-101719.36460087,0.000249,2]
[403828110,1769569840644,-13030.54849016,0.000249,2]
[403828112,1769569840655,-671.77936835,0.000249,2]
[403828580,1769569844979,-201.49,0.000229,7]
[403828582,1769569844988,-5028.32782462,0.000249,2]
[403828584,1769569844999,-7778.05196821,0.000249,2]
[403828588,1769569845030,-32306.68186744,0.000249,2]
[403828637,1769569846640,-785.59683396,0.000249,2]
[403828638,1769569846670,-16239.99104046,0.000249,2]
[403828639,1769569846684,-48573.82859732,0.000249,2]
[403828640,1769569846724,-335.67814789,0.000249,2]
[403828652,1769569911474,500.0,0.00035011,120]
[403828653,1769569911722,500.0,0.00035011,120]
[403828654,1769569938111,160.0,0.000301,120]
[403828655,1769569956151,950.0,0.000301,120]
[403828656,1769570014189,500.0,0.00035011,120]
[403828657,1769570014534,500.0,0.00035011,120]
[403828658,1769570021842,500.0,0.00035011,120]
[403828659,1769570022146,503.32180296,0.00035011,120]
[403828660,1769570031562,182.33258233,0.00035011,120]
[403828661,1769570046496,500.0,0.00035067,120]
[403828662,1769570046752,500.0,0.00035067,120]
[403828663,1769570100753,278.9551907,0.00010959,2]
[403828664,1769570104895,500.0,0.00035067,120]
[403828665,1769570105135,500.0,0.00035067,120]
[403828666,1769570108923,9721.0548093,0.00010696,2]
[403828667,1769570108946,4300.5662612,0.00010696,2]
[403828668,1769570126733,5000.0,0.00011501,2]
[403828669,1769570146655,151.0,0.000115,2]
[403828670,1769570149287,548.4437388,0.00011501,2]
[403828671,1769570149313,4451.5562612,0.00011501,2]
[403828672,1769570172138,3320.27,0.00011501,2]
[403828673,1769570270460,205.0367084,0.00010531,2]
[403828674,1769570291533,500.0,0.00035067,120]
[403828675,1769570292113,500.0,0.00035067,120]
[403828676,1769570342319,160.0,0.000301,120]
[403828677,1769570402473,801.13,0.000115,2]
[403828678,1769570405511,500.0,0.00035073,120]
[403828679,1769570405749,500.0,0.00035073,120]
[403828680,1769570427897,200.0,0.000294,120]
[403828681,1769570431263,221.68332,0.000294,120]
[403828682,1769570435300,200.0,0.000294,120]
[403828683,1769570437648,500.0,0.00035073,120]
[403828684,1769570437894,500.0,0.00035073,120]
[403828685,1769570439908,282.55696659,0.00035073,120]
[403828686,1769570456887,500.0,0.00035073,120]
[403828687,1769570457126,268.22591657,0.00035073,120]
[403828688,1769570502059,568.384,0.00011301,2]
[403828690,1769570648944,500.0,0.00035079,120]
[403828691,1769570649207,500.0,0.00035079,120]
[403828692,1769570685563,-151.0,0.00011525,2]
[403828693,1769570685590,-151.0,0.00011525,2]
[403828694,1769570685617,-151.0,0.00011525,2]
[403828695,1769570685648,-151.0,0.00011525,2]
[403828696,1769570685675,-151.0,0.00011525,2]
[403828697,1769570685703,-151.0,0.00011525,2]
[403828698,1769570685731,-345.71088233,0.00011527,2]
[403828699,1769570685761,-509.90299007,0.00011527,2]
[403828700,1769570685792,-500.0,0.00011527,2]
[403828701,1769570685825,-643.71161043,0.00011527,2]
[403828702,1769570685859,-500.0,0.00011527,2]
[403828703,1769570685889,-500.0,0.00011527,2]
[403828704,1769570685922,-500.0,0.00011527,2]
[403828705,1769570685956,-500.0,0.00011527,2]
[403828706,1769570688333,-500.0,0.00011527,2]
[403828707,1769570688360,-500.0,0.00011527,2]
[403828708,1769570688387,-500.0,0.00011527,2]
[403828709,1769570688414,-500.0,0.00011527,2]
[403828710,1769570688441,-500.0,0.00011527,2]
[403828711,1769570688468,-396.2766365,0.00011527,2]
[403828712,1769570688494,-500.0,0.00011527,2]
[403828713,1769570688520,-500.0,0.00011527,2]
[403828714,1769570688547,-500.0,0.00011527,2]
[403828715,1769570688573,-500.0,0.00011527,2]
[403828716,1769570691450,-500.0,0.00011527,2]
[403828717,1769570691480,-500.0,0.00011527,2]
[403828718,1769570691509,-500.0,0.00011527,2]
[403828719,1769570691537,-500.0,0.00011527,2]
[403828720,1769570691565,-500.0,0.00011527,2]
[403828721,1769570691592,-500.0,0.00011527,2]
[403828722,1769570691620,-500.0,0.00011527,2]
[403828723,1769570691647,-500.0,0.00011527,2]
[403828724,1769570691674,-500.0,0.00011527,2]
[403828725,1769570691701,-500.0,0.00011527,2]
[403828726,1769570694418,-500.0,0.00011527,2]
[403828727,1769570694451,-500.0,0.00011527,2]
[403828728,1769570694480,-367.34378212,0.00011527,2]
[403828729,1769570694511,-500.0,0.00011527,2]
[403828730,1769570694540,-500.0,0.00011527,2]
[403828731,1769570694570,-500.0,0.00011527,2]
[403828732,1769570694602,-500.0,0.00011527,2]
[403828733,1769570694630,-500.0,0.00011527,2]
[403828734,1769570694658,-210.69740405,0.00011527,2]
[403828735,1769570694688,-494.66251075,0.00011527,2]
[403828736,1769570727147,151.03654778,0.00011487,2]
[403828737,1769570761607,500.0,0.00011527,2]
[403828738,1769570761635,203.56605838,0.00011527,2]
[403828750,1769570892199,111338.31812034,0.00035079,120]
[403828752,1769570916322,20032.40702571,0.00035079,120]
[403828754,1769570925913,189.71717514,0.00035079,120]
[403828755,1769570931151,500.0,0.00035079,120]
[403828756,1769570931402,500.0,0.00035079,120]
[403828757,1769570931788,608.67,0.00035079,120]
[403828758,1769570959151,500.08,0.00035079,120]
[403828759,1769571022864,10000.01,0.00011432,2]
[403828760,1769571022892,10000.01,0.00011432,2]
[403828761,1769571022919,10000.01,0.00011432,2]
[403828762,1769571022946,10000.01,0.00011432,2]
[403828763,1769571022972,10000.01,0.00011432,2]
[403828764,1769571022998,10000.01,0.00011432,2]
[403828765,1769571023024,10000.01,0.00011432,2]
[403828766,1769571023053,10000.01,0.00011432,2]
[403828767,1769571023079,10000.01,0.00011432,2]
[403828768,1769571023263,10000.01,0.00011432,2]
[403828769,1769571023298,200009.14258961,0.00011432,2]
[403828805,1769571032579,-391.67220128,0.00011432,2]
[403828812,1769571032635,-1331.21619743,0.00011432,2]
[403828815,1769571032646,-698267.86901168,0.00011432,2]
[403828817,1769571032655,-338.79666468,0.00011527,2]
[403828819,1769571032664,-582.0,0.00011527,2]
[403828821,1769571032674,-300.0,0.0001153,2]
[403828823,1769571032683,-300.0,0.0001153,2]
[403828825,1769571032692,-228.0,0.0001153,2]
[403828827,1769571032700,-500.0,0.0001153,2]
[403828828,1769571032710,-500.0,0.0001153,2]
[403828830,1769571032718,-500.0,0.0001153,2]
[403828833,1769571032728,-500.0,0.0001153,2]
[403828835,1769571032737,-500.0,0.0001153,2]
[403828837,1769571032746,-500.0,0.0001153,2]
[403828839,1769571032755,-500.0,0.0001153,2]
[403828842,1769571032764,-500.0,0.0001153,2]
[403828845,1769571032773,-500.0,0.0001153,2]
[403828847,1769571032783,-500.0,0.0001153,2]
[403828850,1769571032792,-500.0,0.0001153,2]
[403828853,1769571032801,-465.0319405,0.0001153,2]
[403828855,1769571032811,-380.82070708,0.0001153,2]
[403828856,1769571032821,-500.0,0.0001153,2]
[403828857,1769571032830,-500.0,0.0001153,2]
[403828858,1769571032840,-500.0,0.0001153,2]
[403828859,1769571032849,-500.0,0.0001153,2]
[403828860,1769571032859,-500.0,0.0001153,2]
[403828861,1769571032868,-500.0,0.0001153,2]
[403828862,1769571032877,-500.0,0.0001153,2]
[403828863,1769571032887,-500.0,0.0001153,2]
[403828864,1769571032897,-500.0,0.0001153,2]
[403828865,1769571032907,-500.0,0.0001153,2]
[403828866,1769571032916,-500.0,0.0001153,2]
[403828867,1769571032926,-500.0,0.0001153,2]
[403828868,1769571032935,-500.0,0.0001153,2]
[403828869,1769571032945,-500.0,0.0001153,2]
[403828870,1769571032955,-565.77887609,0.0001153,2]
[403828871,1769571032964,-500.0,0.0001153,2]
[403828872,1769571032974,-500.0,0.0001153,2]
[403828873,1769571032984,-500.0,0.0001153,2]
[403828874,1769571032993,-500.0,0.0001153,2]
[403828875,1769571033003,-500.0,0.0001153,2]
[403828876,1769571033012,-500.0,0.0001153,2]
[403828877,1769571033022,-168.21025326,0.0001153,2]
[403828878,1769571033031,-500.0,0.0001153,2]
[403828879,1769571033040,-500.0,0.0001153,2]
[403828880,1769571033050,-50000.0,0.00011531,2]
[403828881,1769571033059,-346.26375753,0.00011531,2]
[403828882,1769571033068,-600.0,0.00011762,2]
[403828883,1769571033077,-300.0,0.00011861,2]
[403828884,1769571033086,-300.0,0.00011861,2]
[403828885,1769571033095,-300.0,0.00011861,2]
[403828886,1769571033104,-300.0,0.00011861,2]
[403828887,1769571033114,-300.0,0.00011861,2]
[403828889,1769571033124,-300.0,0.00011861,2]
[403828891,1769571033133,-300.0,0.00011861,2]
[403828892,1769571033143,-300.0,0.00011861,2]
[403828893,1769571033152,-300.0,0.00011861,2]
[403828894,1769571033161,-300.0,0.00011861,2]
[403828895,1769571033170,-300.0,0.00011861,2]
[403828896,1769571033179,-300.0,0.00011861,2]
[403828898,1769571033188,-300.0,0.00011861,2]
[403828900,1769571033197,-300.0,0.00011861,2]
[403828902,1769571033206,-300.0,0.00011861,2]
[403828904,1769571033215,-500.0,0.00011861,2]
[403828906,1769571033223,-801.13,0.000119,2]
[403828908,1769571033232,-168.86796031,0.00012057,2]
[403828909,1769571033241,-545.26007706,0.00012135,2]
[403828911,1769571033250,-801.13,0.000123,2]
[403828913,1769571033260,-3946.67,0.00012329,2]
[403828915,1769571033269,-3288.89,0.00012329,2]
[403828917,1769571033278,-2740.74,0.00012329,2]
[403828919,1769571033287,-2283.95,0.00012329,2]
[403828920,1769571033296,-1903.3,0.00012329,2]
[403828921,1769571033305,-1586.08,0.00012329,2]
[403828922,1769571033314,-1321.73,0.00012329,2]
[403828923,1769571033323,-1101.44,0.00012329,2]
[403828924,1769571033332,-917.87,0.00012329,2]
[403828925,1769571033342,-764.89,0.00012329,2]
[403828926,1769571033351,-637.41,0.00012329,2]
[403828927,1769571033360,-531.18,0.00012329,2]
[403828928,1769571033369,-442.65,0.00012329,2]
[403828929,1769571033381,-368.87,0.00012329,2]
[403828930,1769571033391,-307.39,0.00012329,2]
[403828931,1769571033400,-256.16,0.00012329,2]
[403828932,1769571033409,-213.47,0.00012329,2]
[403828933,1769571033418,-177.89,0.00012329,2]
[403828934,1769571033429,-889.47,0.00012329,2]
[403828935,1769571033439,-1704.01574486,0.00012515,2]
[403828936,1769571033448,-801.13,0.000126,2]
[403828937,1769571033459,-420.0,0.00012663,2]
[403828938,1769571033469,-300.0,0.00012663,2]
[403828939,1769571033478,-720.0,0.00012938,2]
[403828940,1769571033487,-801.13,0.00013,2]
[403828941,1769571033496,-172.70087908,0.00013273,2]
[403828942,1769571033505,-493.91378351,0.00013273,2]
[403828943,1769571033514,-500.0,0.00013273,2]
[403828944,1769571033523,-500.0,0.00013273,2]
[403828945,1769571033532,-503.52110681,0.00013273,2]
[403828946,1769571033541,-153.33300594,0.00013273,2]
[403828947,1769571033550,-500.0,0.00013273,2]
[403828948,1769571033559,-510.73383861,0.00013273,2]
[403828949,1769571033568,-500.0,0.00013273,2]
[403828950,1769571033577,-508.81622736,0.00013273,2]
[403828951,1769571033586,-500.0,0.00013273,2]
[403828952,1769571033595,-801.13,0.000134,2]
[403828953,1769571033604,-156.06270442,0.00013424,2]
[403828954,1769571033613,-500.0,0.00013424,2]
[403828955,1769571033622,-161.63792744,0.00013424,2]
[403828956,1769571033631,-153.90514756,0.00013424,2]
[403828957,1769571033640,-399.78006432,0.00013527,2]
[403828958,1769571033649,-500.0,0.00013561,2]
[403828959,1769571033658,-300.0,0.00013673,2]
[403828960,1769571033668,-531.43742619,0.00013698,2]
[403828961,1769571033676,-571.95758249,0.00013698,2]
[403828962,1769571033686,-500.0,0.00013698,2]
[403828963,1769571033695,-500.0,0.00013698,2]
[403828964,1769571033703,-500.0,0.00013698,2]
[403828965,1769571033712,-500.0,0.00013698,2]
[403828966,1769571033721,-500.0,0.00013698,2]
[403828967,1769571033730,-500.0,0.00013698,2]
[403828968,1769571033740,-182.78369095,0.00013698,2]
[403828969,1769571033749,-500.0,0.00013698,2]
[403828970,1769571033758,-500.0,0.00013698,2]
[403828971,1769571033768,-231.9426637,0.00013698,2]
[403828972,1769571033778,-756.27,0.00013698,2]
[403828973,1769571033787,-756.27,0.00013698,2]
[403828974,1769571033797,-756.27,0.00013698,2]
[403828975,1769571033806,-756.27,0.00013698,2]
[403828976,1769571033816,-756.27,0.00013698,2]
[403828977,1769571033826,-756.27,0.00013698,2]
[403828978,1769571033835,-756.27,0.00013698,2]
[403828979,1769571033845,-756.27,0.00013698,2]
[403828980,1769571033855,-756.27,0.00013698,2]
[403828981,1769571033865,-756.27,0.00013698,2]
[403828982,1769571033874,-756.27,0.00013698,2]
[403828983,1769571033885,-756.27,0.00013698,2]
[403828984,1769571033895,-756.27,0.00013698,2]
[403828985,1769571033904,-756.27,0.00013698,2]
[403828986,1769571033914,-756.27,0.00013698,2]
[403828987,1769571033923,-756.27,0.00013698,2]
[403828988,1769571033932,-756.27,0.00013698,2]
[403828989,1769571033942,-756.27,0.00013698,2]
[403828990,1769571033951,-756.27,0.00013698,2]
[403828991,1769571033960,-756.27,0.00013698,2]
[403828992,1769571033971,-756.27,0.00013698,2]
[403828993,1769571033981,-756.27,0.00013698,2]
[403828994,1769571033990,-756.27,0.00013698,2]
[403828995,1769571034001,-756.41785257,0.00013698,2]
[403828996,1769571034011,-1109.297851,0.00013699,2]
[403828997,1769571034020,-1000.0,0.00013699,2]
[403828998,1769571034029,-500.0,0.00013699,2]
[403828999,1769571034038,-500.0,0.00013699,2]
[403829000,1769571034047,-500.0,0.00013699,2]
[403829001,1769571034057,-500.0,0.00013699,2]
[403829002,1769571034066,-500.0,0.00013699,2]
[403829003,1769571034075,-260.16839164,0.00013699,2]
[403829004,1769571034084,-500.0,0.00013699,2]
[403829005,1769571034093,-500.0,0.00013699,2]
[403829006,1769571034102,-500.0,0.00013699,2]
[403829007,1769571034111,-500.0,0.00013699,2]
[403829008,1769571034120,-213.84661778,0.00013699,2]
[403829009,1769571034130,-500.0,0.00013699,2]
[403829010,1769571034139,-266.74859181,0.00013699,2]
[403829011,1769571034148,-443.49274844,0.00013699,2]
[403829012,1769571034159,-500.0,0.00013699,2]
[403829013,1769571034168,-506.10991888,0.00013699,2]
[403829014,1769571034178,-500.0,0.00013699,2]
[403829015,1769571034187,-500.0,0.00013699,2]
[403829016,1769571034196,-500.0,0.00013699,2]
[403829017,1769571034206,-500.0,0.00013699,2]
[403829018,1769571034216,-500.0,0.00013699,2]
[403829019,1769571034226,-500.0,0.00013699,2]
[403829020,1769571034236,-500.0,0.00013699,2]
[403829021,1769571034245,-500.0,0.00013699,2]
[403829022,1769571034255,-500.0,0.00013699,2]
[403829023,1769571034264,-500.0,0.00013699,2]
[403829024,1769571034274,-500.41621604,0.00013699,2]
[403829025,1769571034282,-501.77042598,0.00013699,2]
[403829026,1769571034291,-500.0,0.00013699,2]
[403829027,1769571034301,-500.0,0.00013699,2]
[403829028,1769571034311,-532.28183888,0.00013699,2]
[403829029,1769571034320,-500.0,0.00013699,2]
[403829030,1769571034332,-500.0,0.00013699,2]
[403829031,1769571034342,-500.0,0.00013699,2]
[403829032,1769571034351,-500.0,0.00013699,2]
[403829033,1769571034360,-500.0,0.00013699,2]
[403829034,1769571034368,-500.0,0.00013699,2]
[403829035,1769571034379,-245.46545769,0.00013699,2]
[403829036,1769571034391,-801.13,0.000138,2]
[403829037,1769571034400,-1000.0,0.00013821,2]
[403829038,1769571034410,-487.45856891,0.00013821,2]
[403829039,1769571034420,-1000.0,0.00013821,2]
[403829040,1769571034431,-500.0,0.00013821,2]
[403829041,1769571034442,-1000.0,0.00013821,2]
[403829042,1769571034455,-163.0,0.00013908,2]
[403829043,1769571034467,-47486.42995104,0.00014006,2]
[403829044,1769571034481,-30131.21820683,0.00014006,2]
[403829045,1769571034495,-650.02727789,0.00014006,2]
[403829061,1769571038676,-6941.09359314,0.00014006,2]
[403829063,1769571038687,-6752.96099586,0.00014006,2]
[403829066,1769571038699,-311.88768015,0.00014006,2]
[403829068,1769571038710,-7726.38229509,0.00014006,2]
[403829070,1769571038720,-151.03654777,0.000141,2]
[403829072,1769571038730,-801.13,0.000142,2]
[403829074,1769571038739,-304.67423267,0.000142,2]
[403829076,1769571038748,-600.0,0.00014221,2]
[403829078,1769571038757,-864.0,0.00014232,2]
[403829080,1769571038767,-502.14214416,0.00014247,2]
[403829082,1769571038777,-928.72037754,0.00014247,2]
[403829084,1769571038787,-1000.0,0.00014247,2]
[403829086,1769571038796,-159.31465189,0.00014247,2]
[403829087,1769571038806,-1000.0,0.00014247,2]
[403829089,1769571038816,-1000.0,0.00014247,2]
[403829092,1769571038826,-175.49146446,0.00014247,2]
[403829094,1769571038836,-172.30391573,0.00014247,2]
[403829095,1769571038846,-1146.16076302,0.00014247,2]
[403829097,1769571038855,-501.75253763,0.00014247,2]
[403829099,1769571038865,-1000.0,0.00014247,2]
[403829101,1769571038874,-626.86038304,0.00014247,2]
[403829117,1769571039022,-1003.36640104,0.00014247,2]
[403829119,1769571039032,-1000.0,0.00014247,2]
[403829121,1769571039042,-1001.40716094,0.00014247,2]
[403829123,1769571039052,-505.03835844,0.00014247,2]
[403829125,1769571039062,-653.47281249,0.00014247,2]
[403829127,1769571039071,-1000.0,0.00014247,2]
[403829129,1769571039081,-508.49522103,0.00014247,2]